[Event "FIDE Women World Blitz 2021"]
[Site "Warsaw"]
[Date "2021.12.29"]
[Round "1.19"]
[White "Yakimova, Mariya"]
[Black "Injac, Teodora"]
[Result "0-1"]
[ECO "E62"]
[WhiteElo "2219"]
[BlackElo "2387"]
[Annotator "NA"]
[PlyCount "108"]
[EventDate "2021.12.29"]
[EventType "swiss"]
[EventCountry "POL"]
[Tiebreak "Cut1 Buchholz"]
[SourceTitle "playchess.com"]
[Source "ChessBase"]
[SourceQuality "1"]
[TimeControl "180+2"]

1. d4 {[%emt 0:00:02]} Nf6 {[%emt 0:00:01]} 2. c4 {[%emt 0:00:01]} g6 {[%emt 0:
00:01]} 3. Nc3 {[%emt 0:00:01]} Bg7 {[%emt 0:00:01]} 4. g3 {[%emt 0:00:01]} O-O
{[%emt 0:00:03]} 5. Bg2 {[%emt 0:00:01]} d6 {[%emt 0:00:01]} 6. Nf3 {[%emt 0:
00:01]} Nc6 {[%emt 0:00:03]} 7. O-O {[%emt 0:00:03]} Bf5 {[%emt 0:00:02]} 8. d5
{[%emt 0:00:01]} Na5 {[%emt 0:00:01]} 9. Nd4 {[%emt 0:00:01]} Bd7 {[%emt 0:00:
04]} 10. Qd3 {[%emt 0:00:01]} c5 {[%emt 0:00:06]} 11. Nc2 {[%emt 0:00:01]} a6 {
[%emt 0:00:08]} 12. Rb1 {[%emt 0:00:02]} b5 {[%emt 0:00:06]} 13. b3 {[%emt 0:
00:01]} Rb8 {[%emt 0:00:02]} 14. Bd2 {[%emt 0:00:01]} Qc7 {[%emt 0:00:08]} 15.
e4 {[%emt 0:00:15]} Ng4 {[%emt 0:00:14]} 16. Qe2 {[%emt 0:00:49]} bxc4 {
[%emt 0:00:25]} 17. bxc4 {[%emt 0:00:01]} Bd4 {[%emt 0:00:34]} 18. Kh1 {
[%emt 0:01:29]} Ne5 {[%emt 0:00:25]} 19. Na3 {[%emt 0:00:01]} Rb4 {[%emt 0:00:
19]} 20. Rfc1 {[%emt 0:00:18]} Naxc4 {[%emt 0:00:17]} 21. Nxc4 {[%emt 0:00:17]}
Nxc4 {[%emt 0:00:11]} 22. Rxb4 cxb4 {[%emt 0:00:01]} 23. Nd1 {[%emt 0:00:03]}
Bb5 {[%emt 0:00:02]} 24. Bxb4 {[%emt 0:00:11]} Rc8 {[%emt 0:00:20]} 25. Qc2 {
[%emt 0:00:01]} Bb6 {[%emt 0:00:11]} 26. a4 {[%emt 0:00:03]} Bd7 {[%emt 0:00:
03]} 27. Bf1 {[%emt 0:00:02]} a5 {[%emt 0:00:03]} 28. Be1 {[%emt 0:00:05]} Ne5
{[%emt 0:00:01]} 29. Qxc7 Rxc7 {[%emt 0:00:01]} 30. Rxc7 Bxc7 {[%emt 0:00:01]}
31. f4 {[%emt 0:00:03]} Ng4 {[%emt 0:00:02]} 32. h3 {[%emt 0:00:04]} Nf6 {
[%emt 0:00:01]} 33. Nc3 {[%emt 0:00:01]} Bb6 {[%emt 0:00:02]} 34. Kg2 {[%emt 0:
00:03]} Ne8 {[%emt 0:00:02]} 35. Bb5 {[%emt 0:00:02]} Bxb5 {[%emt 0:00:01]} 36.
Nxb5 {[%emt 0:00:00]} f5 {[%emt 0:00:03]} 37. exf5 {[%emt 0:00:02]} gxf5 {
[%emt 0:00:01]} 38. Bc3 {[%emt 0:00:02]} Kf7 {[%emt 0:00:01]} 39. Kf3 {[%emt 0:
00:01]} e6 {[%emt 0:00:04]} 40. dxe6+ Kxe6 {[%emt 0:00:00]} 41. g4 {[%emt 0:00:
03]} fxg4+ {[%emt 0:00:02]} 42. hxg4 {[%emt 0:00:01]} Kd5 {[%emt 0:00:04]} 43.
f5 {[%emt 0:00:03]} Bd8 {[%emt 0:00:01]} 44. Kf4 {[%emt 0:00:02]} h6 {[%emt 0:
00:01]} 45. Kf3 {[%emt 0:00:07]} Kc4 {[%emt 0:00:03]} 46. Bd2 {[%emt 0:00:01]}
Bg5 {[%emt 0:00:03]} 47. Bxg5 {[%emt 0:00:04]} hxg5 {[%emt 0:00:00]} 48. Na7 {
[%emt 0:00:03]} Kb4 {[%emt 0:00:03]} 49. Nc6+ {[%emt 0:00:02]} Kxa4 {[%emt 0:
00:01]} 50. Nd4 {[%emt 0:00:02]} Kb4 {[%emt 0:00:03]} 51. Nc6+ {[%emt 0:00:00]}
Kb5 {[%emt 0:00:00]} 52. Nxa5 {[%emt 0:00:04]} Kxa5 {[%emt 0:00:01]} 53. Ke4 {
[%emt 0:00:02]} Nf6+ {[%emt 0:00:01]} 54. Kd4 {[%emt 0:00:00]} Kb5 {[%emt 0:00:
01]} 0-1

[Event "FIDE Women World Blitz 2021"]
[Site "Warsaw"]
[Date "2021.12.29"]
[Round "1.20"]
[White "Berend, Elvira"]
[Black "Nur-Mukhametova, Alisa"]
[Result "1-0"]
[ECO "D03"]
[WhiteElo "2328"]
[BlackElo "2225"]
[Annotator "NA"]
[PlyCount "133"]
[EventDate "2021.12.29"]
[EventType "swiss"]
[EventCountry "POL"]
[Tiebreak "Cut1 Buchholz"]
[SourceTitle "playchess.com"]
[Source "ChessBase"]
[SourceQuality "1"]
[TimeControl "180+2"]

1. d4 {[%emt 0:00:02]} Nf6 {[%emt 0:00:01]} 2. Nf3 {[%emt 0:00:01]} g6 {
[%emt 0:00:02]} 3. Bg5 {[%emt 0:00:02]} Bg7 {[%emt 0:00:18]} 4. Nbd2 {[%emt 0:
00:02]} d5 {[%emt 0:00:05]} 5. Bxf6 {[%emt 0:00:04]} Bxf6 {[%emt 0:00:02]} 6.
e3 {[%emt 0:00:01]} O-O {[%emt 0:00:08]} 7. Be2 {[%emt 0:00:01]} Nd7 {[%emt 0:
00:48]} 8. O-O {[%emt 0:00:02]} e5 {[%emt 0:00:21]} 9. dxe5 {[%emt 0:00:10]}
Nxe5 {[%emt 0:00:01]} 10. c3 {[%emt 0:00:04]} Bf5 {[%emt 0:00:34]} 11. Nxe5 {
[%emt 0:00:14]} Bxe5 {[%emt 0:00:02]} 12. Bf3 {[%emt 0:00:04]} c6 {[%emt 0:00:
10]} 13. Re1 {[%emt 0:00:22]} Qc7 {[%emt 0:00:11]} 14. g3 {[%emt 0:00:11]} Rad8
{[%emt 0:00:04]} 15. Qb3 {[%emt 0:00:04]} Rfe8 {[%emt 0:00:07]} 16. Bg2 {
[%emt 0:00:10]} h5 {[%emt 0:00:21]} 17. e4 {[%emt 0:00:09]} dxe4 {[%emt 0:00:
08]} 18. Nxe4 {[%emt 0:00:02]} Be6 {[%emt 0:00:09]} 19. Qc2 {[%emt 0:00:05]}
Bg7 {[%emt 0:00:01]} 20. Nc5 {[%emt 0:00:10]} Bf5 {[%emt 0:00:02]} 21. Qb3 {
[%emt 0:00:33]} b6 {[%emt 0:00:01]} 22. Ne4 {[%emt 0:00:02]} Be6 {[%emt 0:00:
05]} 23. Qa4 {[%emt 0:00:03]} Bd5 {[%emt 0:00:02]} 24. Ng5 {[%emt 0:00:08]}
Bxg2 25. Kxg2 {[%emt 0:00:01]} b5 {[%emt 0:00:05]} 26. Qb3 {[%emt 0:00:05]} Bf6
{[%emt 0:00:01]} 27. Ne4 {[%emt 0:00:06]} Bg7 {[%emt 0:00:01]} 28. h4 {[%emt 0:
00:06]} Qd7 {[%emt 0:00:02]} 29. Rad1 {[%emt 0:00:13]} Qc7 {[%emt 0:00:04]} 30.
Rxd8 {[%emt 0:00:02]} Rxd8 {[%emt 0:00:00]} 31. Ng5 {[%emt 0:00:03]} Qd7 {
[%emt 0:00:03]} 32. Re3 {[%emt 0:00:11]} Bf6 {[%emt 0:00:02]} 33. Ne4 {[%emt 0:
00:03]} Bg7 {[%emt 0:00:03]} 34. Rf3 {[%emt 0:00:02]} Qd5 {[%emt 0:00:02]} 35.
Qc2 {[%emt 0:00:10]} Re8 {[%emt 0:00:01]} 36. Ng5 {[%emt 0:00:11]} Re5 {
[%emt 0:00:03]} 37. Nh3 {[%emt 0:00:02]} Rf5 {[%emt 0:00:01]} 38. Nf4 {[%emt 0:
00:02]} Qd7 {[%emt 0:00:03]} 39. Qe4 {[%emt 0:00:02]} Re5 {[%emt 0:00:01]} 40.
Qd3 {[%emt 0:00:01]} Qxd3 {[%emt 0:00:02]} 41. Rxd3 {[%emt 0:00:01]} Re8 {
[%emt 0:00:03]} 42. Rd7 {[%emt 0:00:01]} a5 {[%emt 0:00:02]} 43. Kf1 {[%emt 0:
00:01]} Rc8 {[%emt 0:00:02]} 44. Nd3 {[%emt 0:00:02]} Bf8 {[%emt 0:00:02]} 45.
Ne5 {[%emt 0:00:02]} c5 {[%emt 0:00:02]} 46. Nxf7 {[%emt 0:00:02]} b4 {[%emt 0:
00:01]} 47. Ng5 {[%emt 0:00:03]} bxc3 {[%emt 0:00:02]} 48. bxc3 {[%emt 0:00:00]
} Bg7 {[%emt 0:00:01]} 49. c4 {[%emt 0:00:01]} Bd4 {[%emt 0:00:03]} 50. Ne6 {
[%emt 0:00:02]} Be5 {[%emt 0:00:02]} 51. Ra7 {[%emt 0:00:03]} Re8 {[%emt 0:00:
02]} 52. Ng5 {[%emt 0:00:03]} Bd4 {[%emt 0:00:02]} 53. Nf3 {[%emt 0:00:05]} Bf6
{[%emt 0:00:03]} 54. Rxa5 {[%emt 0:00:03]} Rc8 {[%emt 0:00:02]} 55. Ra6 {
[%emt 0:00:01]} Kf7 {[%emt 0:00:01]} 56. Ra7+ {[%emt 0:00:02]} Ke6 {[%emt 0:00:
02]} 57. Ra6+ {[%emt 0:00:01]} Kf7 {[%emt 0:00:01]} 58. a4 {[%emt 0:00:02]} Rb8
{[%emt 0:00:04]} 59. Ra7+ {[%emt 0:00:04]} Ke6 {[%emt 0:00:02]} 60. Ra6+ {
[%emt 0:00:02]} Kf7 {[%emt 0:00:02]} 61. a5 {[%emt 0:00:00]} Rb4 {[%emt 0:00:
01]} 62. Ra7+ {[%emt 0:00:04]} Ke6 {[%emt 0:00:02]} 63. a6 {[%emt 0:00:03]}
Rxc4 {[%emt 0:00:02]} 64. Rb7 {[%emt 0:00:01]} Ra4 {[%emt 0:00:02]} 65. a7 {
[%emt 0:00:01]} Be7 {[%emt 0:00:03]} 66. Nd2 {[%emt 0:00:03]} Bd6 {[%emt 0:00:
02]} 67. Nb3 {[%emt 0:00:03]} 1-0

[Event "FIDE Women World Blitz 2021"]
[Site "Warsaw"]
[Date "2021.12.29"]
[Round "1.21"]
[White "Kolaric, Spela"]
[Black "Vaishali R"]
[Result "0-1"]
[ECO "B22"]
[WhiteElo "2178"]
[BlackElo "2405"]
[Annotator "NA"]
[PlyCount "58"]
[EventDate "2021.12.29"]
[EventType "swiss"]
[EventCountry "POL"]
[Tiebreak "Cut1 Buchholz"]
[SourceTitle "playchess.com"]
[Source "ChessBase"]
[SourceQuality "1"]
[TimeControl "180+2"]

1. e4 {[%emt 0:00:01]} c5 {[%emt 0:00:02]} 2. c3 {[%emt 0:00:01]} Nf6 {[%emt 0:
00:02]} 3. e5 {[%emt 0:00:01]} Nd5 {[%emt 0:00:02]} 4. d4 {[%emt 0:00:01]} cxd4
{[%emt 0:00:01]} 5. Nf3 {[%emt 0:00:02]} Nc6 {[%emt 0:00:19]} 6. cxd4 {[%emt 0:
00:04]} d6 {[%emt 0:00:01]} 7. Bc4 {[%emt 0:00:04]} dxe5 {[%emt 0:00:03]} 8.
Nxe5 {[%emt 0:00:08]} e6 {[%emt 0:00:29]} 9. O-O {[%emt 0:00:07]} Bd6 {[%emt 0:
00:20]} 10. Nxc6 {[%emt 0:00:13]} bxc6 {[%emt 0:00:02]} 11. Qg4 {[%emt 0:00:14]
} Qf6 {[%emt 0:00:09]} 12. Nc3 {[%emt 0:00:51]} h5 {[%emt 0:00:13]} 13. Qd1 {
[%emt 0:00:40]} Nxc3 {[%emt 0:00:09]} 14. bxc3 {[%emt 0:00:01]} h4 {[%emt 0:00:
04]} 15. h3 {[%emt 0:00:17]} O-O {[%emt 0:00:03]} 16. Bd3 {[%emt 0:00:04]} e5 {
[%emt 0:00:06]} 17. dxe5 {[%emt 0:00:23]} Bxe5 {[%emt 0:00:21]} 18. Bb2 {
[%emt 0:00:10]} Qf4 {[%emt 0:00:04]} 19. Re1 {[%emt 0:00:07]} Qh2+ {[%emt 0:00:
05]} 20. Kf1 Qh1+ {[%emt 0:00:12]} 21. Ke2 Qxg2 {[%emt 0:00:01]} 22. Rg1 {
[%emt 0:00:04]} Qxh3 {[%emt 0:00:07]} 23. Kd2 Bf5 {[%emt 0:00:10]} 24. Bxf5 {
[%emt 0:00:07]} Rad8+ {[%emt 0:00:05]} 25. Kc1 {[%emt 0:00:08]} Rxd1+ {[%emt 0:
00:03]} 26. Rxd1 {[%emt 0:00:02]} Qxf5 {[%emt 0:00:01]} 27. Ba3 {[%emt 0:00:03]
} Bf4+ {[%emt 0:00:04]} 28. Kb2 {[%emt 0:00:00]} Rb8+ {[%emt 0:00:01]} 29. Bb4
{[%emt 0:00:02]} c5 {[%emt 0:00:01]} 0-1

[Event "FIDE Women World Blitz 2021"]
[Site "Warsaw"]
[Date "2021.12.29"]
[Round "1.22"]
[White "Maltsevskaya, Aleksandra"]
[Black "Kazarian, Anna-Maja"]
[Result "0-1"]
[ECO "C13"]
[WhiteElo "2411"]
[BlackElo "2138"]
[Annotator "NA"]
[PlyCount "158"]
[EventDate "2021.12.29"]
[EventType "swiss"]
[EventCountry "POL"]
[Tiebreak "Cut1 Buchholz"]
[SourceTitle "playchess.com"]
[Source "ChessBase"]
[SourceQuality "1"]
[TimeControl "180+2"]

1. e4 {[%emt 0:00:02]} e6 {[%emt 0:00:01]} 2. Nc3 {[%emt 0:00:04]} d5 {[%emt 0:
00:04]} 3. d4 {[%emt 0:00:02]} Nf6 {[%emt 0:00:01]} 4. Bg5 {[%emt 0:00:02]}
dxe4 {[%emt 0:00:01]} 5. Nxe4 {[%emt 0:00:02]} Nbd7 {[%emt 0:00:01]} 6. Bd3 {
[%emt 0:00:03]} Be7 {[%emt 0:00:03]} 7. Qe2 {[%emt 0:00:14]} Nxe4 {[%emt 0:00:
09]} 8. Bxe7 {[%emt 0:00:02]} Qxe7 {[%emt 0:00:02]} 9. Bxe4 {[%emt 0:00:02]}
Nf6 {[%emt 0:00:22]} 10. Bd3 {[%emt 0:00:11]} Bd7 {[%emt 0:00:09]} 11. Nf3 {
[%emt 0:00:06]} c5 {[%emt 0:00:07]} 12. O-O {[%emt 0:00:17]} cxd4 {[%emt 0:00:
09]} 13. Nxd4 {[%emt 0:00:02]} O-O {[%emt 0:00:14]} 14. Rfe1 {[%emt 0:00:09]}
Qc5 {[%emt 0:00:06]} 15. c3 {[%emt 0:00:06]} Rfe8 {[%emt 0:00:14]} 16. Rad1 {
[%emt 0:00:44]} Rad8 {[%emt 0:00:05]} 17. h3 {[%emt 0:00:19]} e5 {[%emt 0:00:
32]} 18. Nb3 {[%emt 0:00:02]} Qc7 {[%emt 0:00:05]} 19. Bb5 {[%emt 0:00:03]} Re7
{[%emt 0:00:48]} 20. Bxd7 {[%emt 0:00:03]} Rdxd7 {[%emt 0:00:07]} 21. Rxd7 {
[%emt 0:00:03]} Qxd7 {[%emt 0:00:08]} 22. Rd1 {[%emt 0:00:19]} Qc7 {[%emt 0:00:
00]} 23. Qe3 {[%emt 0:00:26]} b6 {[%emt 0:00:09]} 24. Qd3 {[%emt 0:00:22]} g6 {
[%emt 0:00:01]} 25. a4 {[%emt 0:00:03]} Rd7 {[%emt 0:00:03]} 26. Qe2 {[%emt 0:
00:01]} Rxd1+ 27. Qxd1 {[%emt 0:00:00]} Kg7 {[%emt 0:00:07]} 28. Qe2 {[%emt 0:
00:03]} Qd6 {[%emt 0:00:06]} 29. a5 {[%emt 0:00:03]} e4 {[%emt 0:00:03]} 30.
axb6 {[%emt 0:00:01]} axb6 {[%emt 0:00:01]} 31. Nd2 {[%emt 0:00:02]} Qd5 {
[%emt 0:00:01]} 32. Nc4 {[%emt 0:00:03]} b5 {[%emt 0:00:02]} 33. Ne3 {[%emt 0:
00:01]} Qb3 {[%emt 0:00:03]} 34. Qd2 {[%emt 0:00:01]} Qa2 {[%emt 0:00:02]} 35.
Qd4 {[%emt 0:00:03]} Qb1+ {[%emt 0:00:03]} 36. Kh2 {[%emt 0:00:00]} Qc1 {
[%emt 0:00:04]} 37. Ng4 {[%emt 0:00:06]} Qf4+ {[%emt 0:00:00]} 38. g3 {[%emt 0:
00:01]} Qf3 {[%emt 0:00:01]} 39. Nxf6 {[%emt 0:00:02]} Qxf6 {[%emt 0:00:01]}
40. Qe3 {[%emt 0:00:03]} Qf5 {[%emt 0:00:02]} 41. Kg2 {[%emt 0:00:01]} Kf6 {
[%emt 0:00:02]} 42. Qd4+ {[%emt 0:00:01]} Qe5 {[%emt 0:00:01]} 43. Qb6+ {
[%emt 0:00:03]} Ke7 {[%emt 0:00:02]} 44. Qe3 {[%emt 0:00:02]} Qd5 {[%emt 0:00:
01]} 45. Qf4 {[%emt 0:00:03]} f5 {[%emt 0:00:04]} 46. Qe3 {[%emt 0:00:02]} Kf6
{[%emt 0:00:02]} 47. g4 {[%emt 0:00:01]} g5 {[%emt 0:00:01]} 48. gxf5 {[%emt 0:
00:02]} Kxf5 {[%emt 0:00:01]} 49. Kh2 {[%emt 0:00:03]} h5 {[%emt 0:00:02]} 50.
Kg1 {[%emt 0:00:02]} g4 {[%emt 0:00:01]} 51. hxg4+ {[%emt 0:00:01]} hxg4 {
[%emt 0:00:02]} 52. Qh6 {[%emt 0:00:02]} Qd1+ {[%emt 0:00:03]} 53. Kh2 {
[%emt 0:00:01]} Qf3 {[%emt 0:00:04]} 54. Qh7+ {[%emt 0:00:02]} Ke6 {[%emt 0:00:
02]} 55. Qg8+ {[%emt 0:00:02]} Ke5 {[%emt 0:00:01]} 56. Qb8+ {[%emt 0:00:01]}
Kf6 {[%emt 0:00:04]} 57. Qd6+ {[%emt 0:00:03]} Kg5 {[%emt 0:00:01]} 58. Qe5+ {
[%emt 0:00:04]} Kh4 {[%emt 0:00:04]} 59. Qh8+ {[%emt 0:00:02]} Kg5 {[%emt 0:00:
00]} 60. Qg7+ {[%emt 0:00:02]} Kf5 {[%emt 0:00:01]} 61. Qf7+ {[%emt 0:00:02]}
Ke5 {[%emt 0:00:01]} 62. Qh5+ {[%emt 0:00:02]} Kd6 {[%emt 0:00:02]} 63. Qh6+ {
[%emt 0:00:02]} Kc5 {[%emt 0:00:00]} 64. Qg5+ {[%emt 0:00:02]} Kc4 {[%emt 0:00:
01]} 65. Qd2 {[%emt 0:00:01]} Qd3 {[%emt 0:00:02]} 66. Qf4 {[%emt 0:00:02]} Kb3
{[%emt 0:00:01]} 67. Qxg4 {[%emt 0:00:02]} Kxb2 {[%emt 0:00:01]} 68. Qe6 {
[%emt 0:00:04]} Kxc3 {[%emt 0:00:01]} 69. Qe5+ {[%emt 0:00:01]} Kd2 {[%emt 0:
00:01]} 70. Kg2 {[%emt 0:00:03]} Qf3+ {[%emt 0:00:03]} 71. Kg1 {[%emt 0:00:01]}
Qg4+ {[%emt 0:00:01]} 72. Kf1 {[%emt 0:00:03]} Qe2+ {[%emt 0:00:02]} 73. Kg1 {
[%emt 0:00:01]} Ke1 {[%emt 0:00:09]} 74. Qc3+ {[%emt 0:00:02]} Qd2 {[%emt 0:00:
02]} 75. Qc5 {[%emt 0:00:03]} b4 {[%emt 0:00:03]} 76. Qf5 {[%emt 0:00:02]} Qe2
{[%emt 0:00:03]} 77. Qf4 {[%emt 0:00:02]} b3 {[%emt 0:00:01]} 78. Qc1+ {
[%emt 0:00:01]} Qd1 {[%emt 0:00:01]} 79. Qc3+ {[%emt 0:00:02]} Ke2+ {[%emt 0:
00:04]} 0-1

[Event "FIDE Women World Blitz 2021"]
[Site "Warsaw"]
[Date "2021.12.29"]
[Round "1.23"]
[White "Serikbay, Assel"]
[Black "Cyfka, Karina"]
[Result "1/2-1/2"]
[ECO "E00"]
[WhiteElo "2237"]
[BlackElo "2416"]
[Annotator "NA"]
[PlyCount "70"]
[EventDate "2021.12.29"]
[EventType "swiss"]
[EventCountry "POL"]
[Tiebreak "Cut1 Buchholz"]
[SourceTitle "playchess.com"]
[Source "ChessBase"]
[SourceQuality "1"]
[TimeControl "180+2"]

1. d4 {[%emt 0:00:01]} Nf6 {[%emt 0:00:01]} 2. c4 {[%emt 0:00:00]} e6 {[%emt 0:
00:06]} 3. g3 {[%emt 0:00:02]} Bb4+ {[%emt 0:00:07]} 4. Bd2 {[%emt 0:00:01]}
Qe7 {[%emt 0:00:02]} 5. Bg2 {[%emt 0:00:02]} Bxd2+ {[%emt 0:00:07]} 6. Qxd2 {
[%emt 0:00:07]} Nc6 {[%emt 0:00:15]} 7. Nc3 {[%emt 0:00:04]} O-O {[%emt 0:00:
02]} 8. e4 {[%emt 0:00:15]} d6 {[%emt 0:00:13]} 9. Nge2 {[%emt 0:00:03]} e5 {
[%emt 0:00:13]} 10. d5 {[%emt 0:00:05]} Nb8 {[%emt 0:00:07]} 11. O-O {[%emt 0:
00:03]} a5 {[%emt 0:00:03]} 12. Qc2 {[%emt 0:00:27]} Nbd7 {[%emt 0:00:23]} 13.
a3 {[%emt 0:00:04]} Nc5 {[%emt 0:00:06]} 14. b4 {[%emt 0:00:06]} Na6 {[%emt 0:
00:03]} 15. Rab1 {[%emt 0:00:05]} axb4 {[%emt 0:00:11]} 16. axb4 {[%emt 0:00:
02]} Bd7 {[%emt 0:00:01]} 17. f4 {[%emt 0:00:23]} exf4 {[%emt 0:00:22]} 18.
Nxf4 {[%emt 0:00:22]} Ng4 {[%emt 0:00:02]} 19. Qe2 {[%emt 0:00:23]} Qe5 {
[%emt 0:00:10]} 20. Nb5 {[%emt 0:00:33]} Bxb5 {[%emt 0:00:14]} 21. cxb5 {
[%emt 0:00:01]} Qd4+ {[%emt 0:00:03]} 22. Kh1 {[%emt 0:00:01]} Ne3 {[%emt 0:00:
20]} 23. bxa6 {[%emt 0:00:01]} Nxf1 {[%emt 0:00:02]} 24. axb7 {[%emt 0:00:08]}
Nxg3+ {[%emt 0:00:17]} 25. hxg3 {[%emt 0:00:02]} Rab8 {[%emt 0:00:00]} 26. Rd1
{[%emt 0:00:18]} Qb6 {[%emt 0:00:03]} 27. Qg4 {[%emt 0:00:05]} g6 {[%emt 0:00:
13]} 28. Nh5 {[%emt 0:00:03]} Rxb7 {[%emt 0:00:08]} 29. Nf6+ {[%emt 0:00:01]}
Kg7 {[%emt 0:00:03]} 30. Nd7 {[%emt 0:00:00]} Qe3 {[%emt 0:00:03]} 31. Nxf8 {
[%emt 0:00:02]} Kxf8 {[%emt 0:00:03]} 32. Qc8+ Kg7 {[%emt 0:00:01]} 33. Qxb7 {
[%emt 0:00:01]} Qh6+ 34. Kg1 {[%emt 0:00:02]} Qe3+ 35. Kh2 Qh6+ {[%emt 0:00:01]
} 1/2-1/2

[Event "FIDE Women World Blitz 2021"]
[Site "Warsaw"]
[Date "2021.12.29"]
[Round "1.24"]
[White "Shuvalova, Polina"]
[Black "Kiolbasa, Oliwia"]
[Result "1-0"]
[ECO "D35"]
[WhiteElo "2515"]
[BlackElo "2403"]
[Annotator "ChessBase"]
[PlyCount "79"]
[EventDate "2021.12.29"]
[EventType "swiss"]
[EventCountry "POL"]
[Tiebreak "Cut1 Buchholz"]
[SourceTitle "playchess.com"]
[Source "ChessBase"]
[SourceQuality "1"]
[TimeControl "180+2"]

1. c4 {[%emt 0:00:02]} e6 {[%emt 0:00:01]} 2. Nc3 {[%emt 0:00:03]} d5 {[%emt 0:
00:01]} 3. d4 {[%emt 0:00:02]} Nf6 {[%emt 0:00:02]} 4. cxd5 {[%emt 0:00:01]}
exd5 {[%emt 0:00:01]} 5. Bg5 {[%emt 0:00:02]} c6 {[%emt 0:00:03]} 6. e3 {
[%emt 0:00:02]} Be7 {[%emt 0:00:02]} 7. Bd3 {[%emt 0:00:03]} h6 {[%emt 0:00:03]
} 8. Bh4 {[%emt 0:00:03]} O-O {[%emt 0:00:03]} 9. Nge2 {[%emt 0:00:01]} Re8 {
[%emt 0:00:03]} 10. O-O {[%emt 0:00:03]} a5 {[%emt 0:00:01]} 11. Rc1 {[%emt 0:
00:04]} Na6 {[%emt 0:00:06]} 12. a3 {[%emt 0:00:05]} Nc7 {[%emt 0:00:03]} 13.
f3 {[%emt 0:00:06]} Ne6 {[%emt 0:00:14]} 14. Qd2 {[%emt 0:00:06]} b5 {[%emt 0:
00:09]} 15. Bf2 {[%emt 0:00:11]} Ba6 {[%emt 0:00:09]} 16. Ng3 {[%emt 0:00:18]}
Qb6 {[%emt 0:00:56]} 17. Nce2 {[%emt 0:00:08]} b4 {[%emt 0:00:10]} 18. axb4 {
[%emt 0:00:07]} axb4 {[%emt 0:00:05]} 19. Bb1 {[%emt 0:00:07]} c5 {[%emt 0:00:
17]} 20. Nf5 {[%emt 0:00:14]} Bf8 {[%emt 0:00:14]} 21. Rfd1 {[%emt 0:00:10]} c4
{[%emt 0:00:11]} 22. e4 {[%emt 0:00:06]} dxe4 {[%emt 0:00:18]} 23. fxe4 {
[%emt 0:00:46]} Ng4 {[%emt 0:00:00]} 24. Bg3 {[%emt 0:00:02]} g6 {[%emt 0:00:
18]} 25. h3 {[%emt 0:00:04]} gxf5 {[%emt 0:00:06]} 26. hxg4 {[%emt 0:00:02]}
fxg4 {[%emt 0:00:02]} 27. Kh1 {[%emt 0:00:10]} Ng5 {[%emt 0:00:02]} 28. e5 {
[%emt 0:00:12]} Bb7 {[%emt 0:00:07]} 29. Nf4 {[%emt 0:00:10]} Be4 {[%emt 0:00:
06]} 30. Bxe4 {[%emt 0:00:15]} Nxe4 {[%emt 0:00:01]} 31. Qe3 {[%emt 0:00:01]}
Ng5 {[%emt 0:00:06]} 32. Nd5 {[%emt 0:00:03]} Qe6 {[%emt 0:00:03]} 33. Nc7 {
[%emt 0:00:02]} Qd7 {[%emt 0:00:01]} 34. Nxa8 {[%emt 0:00:03]} Rxa8 {[%emt 0:
00:01]} 35. d5 {[%emt 0:00:04]} Ra2 {[%emt 0:00:03]} 36. Qd4 {[%emt 0:00:04]}
Qf5 {[%emt 0:00:02]} 37. Rxc4 {[%emt 0:00:04]} Nh7 {[%emt 0:00:03]} 38. Qxg4+ {
[%emt 0:00:02]} Qxg4 39. Rxg4+ {[%emt 0:00:01]} Ng5 {[%emt 0:00:03]} 40. d6 {
[%emt 0:00:02]} 1-0

[Event "FIDE Women World Blitz 2021"]
[Site "Warsaw"]
[Date "2021.12.29"]
[Round "1.25"]
[White "Antolak, Julia"]
[Black "Batsiashvili, Nino"]
[Result "1-0"]
[ECO "C77"]
[WhiteElo "2334"]
[BlackElo "2491"]
[Annotator "ChessBase"]
[PlyCount "117"]
[EventDate "2021.12.29"]
[EventType "swiss"]
[EventCountry "POL"]
[Tiebreak "Cut1 Buchholz"]
[SourceTitle "playchess.com"]
[Source "ChessBase"]
[SourceQuality "1"]
[TimeControl "180+2"]

1. e4 {[%emt 0:00:01]} e5 {[%emt 0:00:00]} 2. Nf3 {[%emt 0:00:01]} Nc6 {
[%emt 0:00:01]} 3. Bb5 {[%emt 0:00:01]} a6 {[%emt 0:00:00]} 4. Ba4 {[%emt 0:00:
02]} Nf6 {[%emt 0:00:02]} 5. d3 {[%emt 0:00:04]} b5 {[%emt 0:00:00]} 6. Bb3 {
[%emt 0:00:01]} Bc5 {[%emt 0:00:01]} 7. Nc3 {[%emt 0:00:03]} O-O {[%emt 0:00:
07]} 8. Nd5 {[%emt 0:00:08]} h6 {[%emt 0:00:18]} 9. c3 {[%emt 0:00:01]} d6 {
[%emt 0:00:37]} 10. Nxf6+ {[%emt 0:00:04]} Qxf6 {[%emt 0:00:01]} 11. Bd5 {
[%emt 0:00:01]} Bd7 {[%emt 0:00:01]} 12. Rg1 {[%emt 0:00:01]} Ne7 {[%emt 0:00:
51]} 13. Bxa8 {[%emt 0:00:04]} Rxa8 {[%emt 0:00:00]} 14. Be3 {[%emt 0:00:04]}
Rd8 {[%emt 0:00:14]} 15. Qe2 {[%emt 0:00:05]} Ng6 {[%emt 0:00:06]} 16. O-O-O {
[%emt 0:01:03]} Nf4 17. Bxf4 {[%emt 0:00:01]} Qxf4+ {[%emt 0:00:03]} 18. Kb1 {
[%emt 0:00:01]} Be6 {[%emt 0:00:15]} 19. Rge1 {[%emt 0:00:13]} a5 {[%emt 0:00:
11]} 20. d4 {[%emt 0:00:02]} Bc4 {[%emt 0:00:01]} 21. Qd2 {[%emt 0:00:06]} Qxd2
{[%emt 0:00:01]} 22. Rxd2 {[%emt 0:00:01]} exd4 {[%emt 0:00:01]} 23. Nxd4 {
[%emt 0:00:06]} b4 {[%emt 0:00:12]} 24. cxb4 {[%emt 0:00:27]} Bxb4 {[%emt 0:00:
03]} 25. Rc1 {[%emt 0:00:00]} Bxd2 {[%emt 0:00:05]} 26. Rxc4 {[%emt 0:00:01]}
c5 {[%emt 0:00:12]} 27. Nb3 {[%emt 0:00:02]} Be1 {[%emt 0:00:14]} 28. f3 {
[%emt 0:00:13]} Ra8 {[%emt 0:00:02]} 29. Rc1 {[%emt 0:00:08]} Bh4 {[%emt 0:00:
02]} 30. Rd1 {[%emt 0:00:03]} Be7 {[%emt 0:00:01]} 31. Nd2 {[%emt 0:00:03]} a4
{[%emt 0:00:02]} 32. Nc4 {[%emt 0:00:00]} Ra6 {[%emt 0:00:00]} 33. Kc2 {
[%emt 0:00:05]} f6 {[%emt 0:00:02]} 34. Ne3 {[%emt 0:00:03]} Kf7 {[%emt 0:00:
02]} 35. Nd5 {[%emt 0:00:01]} Bd8 {[%emt 0:00:01]} 36. Rd2 {[%emt 0:00:05]} Ke6
{[%emt 0:00:06]} 37. Kd3 {[%emt 0:00:01]} g5 {[%emt 0:00:02]} 38. Kc4 {[%emt 0:
00:02]} f5 {[%emt 0:00:02]} 39. exf5+ {[%emt 0:00:10]} Kxf5 {[%emt 0:00:02]}
40. Nc3 {[%emt 0:00:01]} Ke6 {[%emt 0:00:05]} 41. Re2+ {[%emt 0:00:07]} Kd7 {
[%emt 0:00:01]} 42. Nd5 {[%emt 0:00:03]} Ra8 {[%emt 0:00:02]} 43. g3 {[%emt 0:
00:15]} h5 {[%emt 0:00:03]} 44. f4 {[%emt 0:00:01]} gxf4 {[%emt 0:00:01]} 45.
gxf4 {[%emt 0:00:00]} Bh4 {[%emt 0:00:10]} 46. Nb6+ {[%emt 0:00:02]} Kc6 {
[%emt 0:00:02]} 47. Nxa8 {[%emt 0:00:01]} d5+ {[%emt 0:00:01]} 48. Kd3 {
[%emt 0:00:01]} Kb7 {[%emt 0:00:03]} 49. Re8 {[%emt 0:00:02]} Bf6 {[%emt 0:00:
02]} 50. b3 {[%emt 0:00:01]} axb3 {[%emt 0:00:02]} 51. axb3 {[%emt 0:00:00]} h4
{[%emt 0:00:02]} 52. Rf8 {[%emt 0:00:02]} Bb2 {[%emt 0:00:01]} 53. f5 {[%emt 0:
00:01]} Be5 {[%emt 0:00:02]} 54. f6 {[%emt 0:00:02]} Bxh2 {[%emt 0:00:01]} 55.
f7 {[%emt 0:00:01]} Bd6 {[%emt 0:00:01]} 56. Rh8 {[%emt 0:00:01]} h3 {[%emt 0:
00:02]} 57. f8=Q {[%emt 0:00:05]} Bxf8 {[%emt 0:00:01]} 58. Rxf8 {[%emt 0:00:
01]} h2 {[%emt 0:00:02]} 59. Rh8 {[%emt 0:00:01]} 1-0